bitfinex-derivatives/quotes_BNBF0:USTF0_20250608
["timestamp","ask_amount","ask_price","bid_price","bid_amount"]
[1749368023241,0.52,649.84,649.3,0.368]
[1749368023435,1.10708673,649.83,649.3,0.368]
[1749368023636,1.10708673,649.82,649.3,0.368]
[1749368023841,1.10708673,649.81,649.31,0.385]
[1749368024043,1.10708673,649.8,649.31,0.385]
[1749368024336,0.52,649.84,649.31,0.385]
[1749368024337,1.10708673,649.79,649.31,0.385]
[1749368024540,1.10708673,649.78,649.31,0.385]
[1749368024737,1.10708673,649.77,649.31,0.385]
[1749368025038,0.52,649.84,649.31,0.385]
[1749368025339,1.10716739,649.83,649.31,0.385]
[1749368025539,1.10716739,649.82,649.31,0.385]
[1749368025738,1.10716739,649.81,649.31,0.385]
[1749368025937,1.10716739,649.8,649.31,0.385]
[1749368026141,1.10716739,649.79,649.31,0.385]
[1749368026342,1.10716739,649.78,649.31,0.385]
[1749368026543,0.52,649.84,649.31,0.385]
[1749368026742,1.10717021,649.83,649.31,0.385]
[1749368026940,1.10717021,649.82,649.31,0.385]
[1749368027241,1.10717021,649.81,649.31,0.385]
[1749368027444,1.10717021,649.8,649.31,0.385]
[1749368027743,1.10717021,649.79,649.31,0.385]
[1749368027939,1.10717021,649.78,649.31,0.385]
[1749368028140,0.52,649.84,649.31,0.385]
[1749368028141,1.10717021,649.77,649.31,0.385]
[1749368028344,1.10717021,649.76,649.31,0.385]
[1749368028543,0.52,649.84,649.31,0.385]
[1749368028741,1.10716673,649.83,649.31,0.385]
[1749368028947,1.10716673,649.82,649.31,0.385]
[1749368029144,1.10716673,649.81,649.31,0.385]
[1749368029344,1.10716673,649.8,649.31,0.385]
[1749368029646,1.10716673,649.79,649.31,0.385]
[1749368029845,1.10716673,649.78,649.31,0.385]
[1749368030042,1.10716673,649.77,649.31,0.385]
[1749368030241,1.10716673,649.76,649.31,0.385]
[1749368030442,1.10716673,649.75,649.31,0.385]
[1749368030642,1.10716673,649.74,649.31,0.385]
[1749368030844,1.10716673,649.73,649.31,0.385]
[1749368031043,1.10716673,649.72,649.31,0.385]
[1749368031244,0.52,649.84,649.31,0.385]
[1749368031444,1.10708582,649.83,649.31,0.385]
[1749368031644,1.10708582,649.82,649.31,0.385]
[1749368031844,0.52,649.84,649.31,0.385]
[1749368031845,1.10708582,649.81,649.31,0.385]
[1749368032042,1.10708582,649.8,649.31,0.385]
[1749368032246,1.10708582,649.79,649.31,0.385]
[1749368032444,1.10708582,649.78,649.31,0.385]
[1749368032648,1.10708582,649.77,649.31,0.385]
[1749368032845,1.10708582,649.76,649.31,0.385]
[1749368033048,1.10708582,649.75,649.31,0.385]
[1749368033248,1.10708582,649.74,649.31,0.385]
[1749368033446,1.10708582,649.73,649.31,0.385]
[1749368033644,0.52,649.84,649.31,0.385]
[1749368033849,1.10676251,649.83,649.31,0.385]
[1749368034047,1.10676251,649.82,649.31,0.385]
[1749368034350,1.10676251,649.81,649.31,0.385]
[1749368034550,1.10676251,649.8,649.31,0.385]
[1749368034750,1.10676251,649.79,649.31,0.385]
[1749368035047,1.10676251,649.78,649.31,0.385]
[1749368035246,1.10676251,649.77,649.31,0.385]
[1749368035446,1.10676251,649.76,649.31,0.385]
[1749368035646,1.10676251,649.75,649.31,0.385]
[1749368035850,1.10676251,649.74,649.31,0.385]
[1749368036052,1.10676251,649.73,649.31,0.385]
[1749368036253,1.10676251,649.72,649.31,0.385]
[1749368036548,1.10676251,649.71,649.31,0.385]
[1749368036749,0.52,649.84,649.31,0.385]
[1749368036950,1.10640073,649.83,649.31,0.385]
[1749368037147,1.10640073,649.82,649.31,0.385]
[1749368037348,1.10640073,649.81,649.31,0.385]
[1749368037646,1.10640073,649.8,649.31,0.385]
[1749368037846,1.10640073,649.79,649.31,0.385]
[1749368038148,1.10640073,649.78,649.31,0.385]
[1749368038350,1.10640073,649.77,649.31,0.385]
[1749368038650,1.10640073,649.76,649.31,0.385]
[1749368038851,1.10640073,649.75,649.31,0.385]
[1749368039049,1.10640073,649.74,649.31,0.385]
[1749368039253,1.10640073,649.73,649.31,0.385]
[1749368039549,1.10640073,649.72,649.31,0.385]
[1749368039747,0.52,649.84,649.31,0.385]
[1749368039949,1.10604571,649.83,649.31,0.385]
[1749368040151,1.10604571,649.82,649.31,0.385]
[1749368040347,1.10604571,649.81,649.31,0.385]
[1749368040554,1.10604571,649.8,649.31,0.385]
[1749368040748,1.10604571,649.79,649.31,0.385]
[1749368041046,0.52,649.84,649.31,0.385]
[1749368041047,1.10604571,649.78,649.31,0.385]
[1749368041253,1.10604571,649.77,649.31,0.385]
[1749368041450,1.10604571,649.76,649.31,0.385]
[1749368041653,1.10604571,649.75,649.31,0.385]
[1749368041953,1.10604571,649.74,649.31,0.385]
[1749368042153,1.10604571,649.73,649.31,0.385]
[1749368042355,1.10604571,649.72,649.31,0.385]
[1749368042553,0.52,649.84,649.31,0.385]
[1749368042754,1.10608361,649.83,649.31,0.385]
[1749368042957,1.10608361,649.82,649.31,0.385]
[1749368043155,1.10608361,649.81,649.31,0.385]
[1749368043358,1.10608361,649.8,649.31,0.385]
[1749368043555,1.10608361,649.79,649.31,0.385]
[1749368043761,1.10608361,649.78,649.31,0.385]
[1749368043957,1.10608361,649.77,649.31,0.385]
[1749368044159,1.10608361,649.76,649.32,0.511]
[1749368044463,1.10608361,649.75,649.32,0.511]
[1749368044660,1.10608361,649.74,649.32,0.511]
[1749368044861,1.10608361,649.73,649.32,0.511]
[1749368045058,1.10608361,649.72,649.32,0.511]
[1749368045258,1.10608361,649.71,649.32,0.511]
[1749368045462,1.10608361,649.7,649.32,0.511]
[1749368045664,1.10608361,649.69,649.32,0.511]
[1749368045862,1.10608361,649.68,649.32,0.511]
[1749368046163,1.10608361,649.67,649.32,0.511]
[1749368046460,1.10608361,649.66,649.32,0.511]
[1749368046659,1.10608361,649.65,649.32,0.511]
[1749368046857,0.52,649.84,649.32,0.511]
[1749368047060,1.10539399,649.83,649.32,0.511]
[1749368047260,0.52,649.84,649.32,0.511]
[1749368047261,1.10539399,649.82,649.32,0.511]
[1749368047464,1.10539399,649.81,649.32,0.511]
[1749368047766,1.10539399,649.8,649.32,0.511]
[1749368048059,1.10539399,649.79,649.32,0.511]
[1749368048259,1.10539399,649.78,649.32,0.511]
[1749368048458,1.10539399,649.77,649.32,0.511]
[1749368048660,1.10492094,649.76,649.32,0.511]
[1749368048859,1.10492094,649.75,649.32,0.511]
[1749368049063,1.10492094,649.74,649.32,0.511]
[1749368049262,1.10492094,649.73,649.32,0.511]
[1749368049461,1.10492094,649.72,649.32,0.511]
[1749368049660,1.10492094,649.71,649.32,0.511]
[1749368049864,1.10492094,649.7,649.32,0.511]
[1749368050061,0.52,649.84,649.32,0.511]
[1749368050062,1.10492094,649.69,649.32,0.511]
[1749368050267,1.10492094,649.68,649.32,0.511]
[1749368050565,0.52,649.84,649.32,0.511]
[1749368050766,1.10458526,649.83,649.32,0.511]
[1749368050966,1.10458526,649.82,649.32,0.511]
[1749368051168,1.10458526,649.81,649.32,0.511]
[1749368051365,1.10458526,649.8,649.32,0.511]
[1749368051563,1.10458526,649.79,649.32,0.511]
[1749368051864,1.10458526,649.78,649.33,0.385]
[1749368052064,1.10458526,649.77,649.33,0.385]
[1749368052261,1.10458526,649.76,649.33,0.385]
[1749368052465,1.10458526,649.75,649.33,0.385]
[1749368052760,1.10458526,649.74,649.33,0.385]
[1749368052963,1.10458526,649.73,649.33,0.385]
[1749368053160,1.10458526,649.72,649.33,0.385]
[1749368053365,1.10458526,649.71,649.33,0.385]
[1749368053566,1.10458526,649.7,649.33,0.385]
[1749368053867,0.52,649.84,649.33,0.385]
[1749368054067,1.10434841,649.83,649.33,0.385]
[1749368054266,1.10434841,649.82,649.33,0.385]
[1749368054566,1.10434841,649.81,649.33,0.385]
[1749368054865,1.10434841,649.8,649.33,0.385]
[1749368055067,1.10434841,649.79,649.33,0.385]
[1749368055264,1.10434841,649.78,649.33,0.385]
[1749368055468,1.10434841,649.77,649.33,0.385]
[1749368055670,1.10434841,649.76,649.33,0.385]
[1749368055868,1.10434841,649.75,649.33,0.385]
[1749368056069,1.10434841,649.74,649.33,0.385]
[1749368056365,1.10434841,649.73,649.33,0.385]
[1749368056570,0.26787054,649.86,649.33,0.385]
[1749368056769,1.10423233,649.85,649.33,0.385]
[1749368057068,1.10423233,649.84,649.33,0.385]
[1749368057269,1.10423233,649.83,649.33,0.385]
[1749368057469,1.10423233,649.82,649.33,0.385]
[1749368057669,1.10423233,649.81,649.33,0.385]
[1749368057868,1.10423233,649.8,649.33,0.385]
[1749368058169,1.10423233,649.79,649.33,0.385]
[1749368058368,1.10423233,649.78,649.33,0.385]
[1749368058571,1.10423233,649.77,649.33,0.385]
[1749368058771,1.10423233,649.76,649.33,0.385]
[1749368058972,1.10423233,649.75,649.33,0.385]
[1749368059266,1.10423233,649.74,649.33,0.385]
[1749368059466,1.10423233,649.73,649.33,0.385]
[1749368059669,0.539,649.84,649.33,0.385]
[1749368059866,1.10394902,649.83,649.33,0.385]
[1749368060071,1.10394902,649.82,649.33,0.385]
[1749368060270,1.10394902,649.81,649.33,0.385]
[1749368060566,1.10394902,649.8,649.33,0.385]
[1749368060769,1.10394902,649.79,649.33,0.385]
[1749368060965,1.10394902,649.78,649.33,0.385]
[1749368061168,1.10394902,649.77,649.33,0.385]
[1749368061365,0.539,649.84,649.33,0.385]
[1749368061366,1.10394902,649.76,649.33,0.385]
[1749368061566,1.10394902,649.75,649.33,0.385]
[1749368061867,1.10394902,649.74,649.33,0.385]
[1749368062066,1.10394902,649.73,649.33,0.385]
[1749368062271,1.10394902,649.72,649.33,0.385]
[1749368062571,0.539,649.84,649.33,0.385]
[1749368062767,1.1072114,649.83,649.33,0.385]
[1749368062971,1.1072114,649.82,649.33,0.385]
[1749368063271,1.1072114,649.81,649.33,0.385]
[1749368063473,1.1072114,649.8,649.33,0.385]
[1749368063674,1.1072114,649.79,649.33,0.385]
[1749368063971,1.1072114,649.78,649.33,0.385]
[1749368064170,1.1072114,649.77,649.33,0.385]
[1749368064373,1.1072114,649.76,649.33,0.385]
[1749368064669,1.1072114,649.75,649.33,0.385]
[1749368064869,1.1072114,649.74,649.33,0.385]
[1749368065169,1.1072114,649.73,649.33,0.385]
[1749368065374,0.539,649.84,649.33,0.385]
[1749368065573,1.10722505,649.83,649.33,0.385]
[1749368065768,1.10722505,649.82,649.33,0.385]
[1749368065969,1.10722505,649.81,649.33,0.385]
[1749368066173,1.10722505,649.8,649.33,0.385]
[1749368066371,1.10722505,649.79,649.33,0.385]
[1749368066574,1.10722505,649.78,649.33,0.385]
[1749368066774,1.10722505,649.77,649.33,0.385]
[1749368067075,1.10722505,649.76,649.33,0.385]
[1749368067271,1.10722505,649.75,649.33,0.385]
[1749368067470,1.10722505,649.74,649.33,0.385]
[1749368067671,1.10722505,649.73,649.33,0.385]
[1749368067871,1.10722505,649.72,649.33,0.385]
[1749368068173,0.539,649.84,649.33,0.385]
[1749368068369,1.10716596,649.83,649.33,0.385]
[1749368068571,1.10716596,649.82,649.33,0.385]
[1749368068771,1.10716596,649.81,649.33,0.385]
[1749368068976,1.10716596,649.8,649.33,0.385]
[1749368069173,0.539,649.84,649.33,0.385]
[1749368069174,1.10716596,649.79,649.33,0.385]
[1749368069374,1.10716596,649.78,649.33,0.385]
[1749368069675,1.10716596,649.77,649.33,0.385]
[1749368069874,1.10716596,649.76,649.34,0.435]
[1749368070078,0.539,649.84,649.34,0.435]
[1749368070079,1.10716596,649.75,649.34,0.435]
[1749368070378,1.10716596,649.74,649.34,0.435]
[1749368070574,1.10716596,649.73,649.34,0.435]
[1749368070773,1.10716596,649.72,649.34,0.435]
[1749368070977,1.10716596,649.71,649.34,0.435]
[1749368071175,1.10721455,649.7,649.34,0.435]
[1749368071374,0.539,649.84,649.34,0.435]
[1749368071678,1.10721637,649.83,649.34,0.435]
[1749368071878,1.10721637,649.82,649.34,0.435]
[1749368072079,1.10721637,649.81,649.34,0.435]
[1749368072276,1.10721637,649.8,649.34,0.435]
[1749368072480,1.10721637,649.79,649.34,0.435]
[1749368072680,0.539,649.84,649.34,0.435]
[1749368072681,1.10721637,649.78,649.34,0.435]
[1749368072879,1.10721637,649.77,649.34,0.435]
[1749368073176,1.10721637,649.76,649.34,0.435]
[1749368073478,0.539,649.84,649.34,0.435]
[1749368073479,1.10721637,649.75,649.34,0.435]
[1749368073680,1.10721637,649.74,649.34,0.435]
[1749368073980,1.10721637,649.73,649.35,0.385]
[1749368074182,1.10721637,649.72,649.35,0.385]
[1749368074382,1.10721637,649.71,649.35,0.385]
[1749368074682,1.10721637,649.7,649.35,0.385]
[1749368074883,1.10721637,649.69,649.35,0.385]
[1749368075182,1.10721637,649.68,649.35,0.385]
[1749368075484,1.10721637,649.67,649.35,0.385]
[1749368075677,1.10721637,649.66,649.35,0.385]
[1749368075878,0.539,649.84,649.35,0.385]
[1749368076078,1.10715278,649.83,649.35,0.385]
[1749368076377,1.10715278,649.82,649.35,0.385]
[1749368076576,1.10715278,649.81,649.35,0.385]
[1749368076777,1.10715278,649.8,649.35,0.385]
[1749368076980,1.10715278,649.79,649.35,0.385]
[1749368077281,1.10715278,649.78,649.35,0.385]
[1749368077477,1.10715278,649.77,649.35,0.385]
[1749368077681,1.10715278,649.76,649.35,0.385]
[1749368077882,1.10715278,649.75,649.35,0.385]
[1749368078078,1.10715278,649.74,649.35,0.385]
[1749368078282,1.10715278,649.73,649.35,0.385]
[1749368078582,1.10715278,649.72,649.35,0.385]
[1749368078779,1.10715278,649.71,649.35,0.385]
[1749368078983,1.10715278,649.7,649.35,0.385]
[1749368079179,1.10715278,649.69,649.35,0.385]
[1749368079384,1.10715278,649.68,649.35,0.385]
[1749368079583,0.539,649.84,649.35,0.385]
[1749368079584,1.10715278,649.67,649.35,0.385]
[1749368079784,0.539,649.84,649.35,0.385]
[1749368080081,1.10728556,649.83,649.35,0.385]
[1749368080285,1.10728556,649.82,649.35,0.385]
[1749368080484,1.10728556,649.81,649.35,0.385]
[1749368080785,1.10728556,649.8,649.35,0.385]
[1749368080985,1.10728556,649.79,649.35,0.385]
[1749368081284,1.10728556,649.78,649.35,0.385]
[1749368081481,1.10728556,649.77,649.35,0.385]
[1749368081680,1.10728556,649.76,649.35,0.385]
[1749368081882,1.10728556,649.75,649.35,0.385]
[1749368082085,1.68911754,649.84,649.35,0.385]
[1749368082086,1.10728556,649.74,649.35,0.385]
[1749368082383,1.10728556,649.73,649.35,0.385]
[1749368082581,1.10728556,649.72,649.35,0.385]
[1749368082783,1.10728556,649.71,649.35,0.385]
[1749368082986,1.10728556,649.7,649.35,0.385]
[1749368083182,1.10728556,649.69,649.35,0.385]
[1749368083387,1.10728556,649.68,649.35,0.385]
[1749368083588,1.10728556,649.67,649.35,0.385]
[1749368083888,1.10728556,649.66,649.35,0.385]
[1749368084188,1.10728556,649.65,649.35,0.385]
[1749368084386,0.26793035,649.59,649.35,0.385]
[1749368084886,0.26793035,649.59,649.36,0.449]
[1749368098495,0.26793035,649.59,649.36,0.818]
[1749368099694,1.10903293,649.58,649.36,0.818]
[1749368099898,0.26793035,649.59,649.36,0.818]
[1749368100198,1.10902944,649.58,649.36,0.818]
[1749368100397,0.26793035,649.59,649.36,0.818]
[1749368100595,1.10902809,649.58,649.36,0.818]
[1749368100795,0.26793035,649.59,649.36,0.818]
[1749368101098,1.10877045,649.58,649.36,0.818]
[1749368101297,0.26793035,649.59,649.36,0.818]
[1749368101495,1.1087643,649.58,649.36,0.818]
[1749368101694,0.26793035,649.59,649.36,0.818]
[1749368101899,1.10876642,649.58,649.36,0.818]
[1749368102100,0.26793035,649.59,649.36,0.818]
[1749368102300,1.10892226,649.58,649.36,0.818]
[1749368102496,0.26793035,649.59,649.36,0.818]
[1749368102696,1.10892529,649.58,649.36,0.818]
[1749368102900,0.26793035,649.59,649.36,0.818]
[1749368103100,1.10894671,649.58,649.36,0.818]
[1749368103401,0.26793035,649.59,649.36,0.818]
[1749368103697,1.1089384,649.58,649.36,0.818]
[1749368103901,0.26793035,649.59,649.36,0.818]
[1749368104097,1.10895927,649.58,649.36,0.818]
[1749368104402,1.10895927,649.57,649.36,0.818]
[1749368104600,0.539,649.84,649.36,0.818]
[1749368104896,0.26790663,649.69,649.36,0.818]
[1749368105200,1.10911111,649.68,649.36,0.818]
[1749368105499,0.26790663,649.69,649.36,0.818]
[1749368105701,1.10916114,649.68,649.36,0.818]
[1749368105902,0.26790663,649.69,649.36,0.818]
[1749368106102,1.10815332,649.68,649.36,0.818]
[1749368106299,0.26790663,649.69,649.36,0.818]
[1749368106503,1.10809078,649.68,649.36,0.818]
[1749368106704,0.26790663,649.69,649.36,0.369]
[1749368106899,1.1080772,649.68,649.36,0.369]
[1749368107203,0.26790663,649.69,649.36,0.369]
[1749368109706,0.26790663,649.69,649.37,0.458]
[1749368111211,1.10645978,649.68,649.37,0.458]
[1749368111509,0.26790663,649.69,649.37,0.458]
[1749368115210,0.476,649.68,649.37,0.458]
[1749368121713,0.476,649.68,649.36,0.369]
[1749368122612,0.476,649.68,649.28,0.30803351]
[1749368125019,0.476,649.68,649.29,0.385]
[1749368125618,0.476,649.68,649.3,0.337]
[1749368129121,1.10567951,649.67,649.3,0.337]
[1749368129321,0.476,649.68,649.3,0.337]
[1749368131117,0.26790663,649.69,649.3,0.337]
[1749368131318,1.10558429,649.68,649.3,0.337]
[1749368131623,0.26790663,649.69,649.3,0.337]
[1749368131823,1.1056217,649.68,649.3,0.337]
[1749368132021,0.26790663,649.69,649.3,0.337]
[1749368132223,1.10562012,649.68,649.3,0.337]
[1749368132519,0.26790663,649.69,649.3,0.337]
[1749368132720,1.10561647,649.68,649.3,0.337]
[1749368132919,0.26790663,649.69,649.3,0.337]
[1749368134321,0.458,649.68,649.3,0.337]
[1749368138928,0.458,649.68,649.31,0.357]
[1749368142928,1.10568124,649.67,649.31,0.357]
[1749368143125,0.458,649.68,649.31,0.357]
[1749368143330,1.10568482,649.67,649.31,0.357]
[1749368143531,0.458,649.68,649.31,0.357]
[1749368143727,1.10569692,649.67,649.31,0.357]
[1749368143932,0.458,649.68,649.31,0.357]
[1749368144129,1.10569555,649.67,649.31,0.357]
[1749368144429,0.458,649.68,649.31,0.357]
[1749368144731,1.1057345,649.67,649.31,0.357]
[1749368144928,1.10572859,649.66,649.31,0.357]
[1749368145228,0.458,649.68,649.31,0.357]
[1749368145728,1.10575508,649.67,649.31,0.357]
[1749368145932,1.10577586,649.66,649.31,0.357]
[1749368146131,0.458,649.68,649.31,0.357]
[1749368146327,1.10579639,649.67,649.31,0.357]
[1749368146529,1.10579639,649.66,649.31,0.357]
[1749368146728,0.458,649.68,649.31,0.357]
[1749368146930,1.10581811,649.67,649.31,0.357]
[1749368147132,1.10581811,649.66,649.31,0.357]
[1749368147327,0.458,649.68,649.31,0.357]
[1749368147632,1.10595133,649.67,649.31,0.357]
[1749368147832,1.10595133,649.66,649.31,0.357]
[1749368148133,0.458,649.68,649.31,0.357]
[1749368148429,1.1059538,649.67,649.31,0.357]
[1749368148633,1.1059538,649.66,649.31,0.357]
[1749368148832,0.458,649.68,649.31,0.357]
[1749368149031,1.10597856,649.67,649.31,0.357]
[1749368149230,1.10597856,649.66,649.31,0.357]
[1749368149433,0.458,649.68,649.31,0.357]
[1749368149734,1.10600349,649.67,649.31,0.357]
[1749368149935,1.10600349,649.66,649.31,0.357]
[1749368150234,0.458,649.68,649.31,0.357]
[1749368150430,1.106034,649.67,649.31,0.357]
[1749368150635,1.106034,649.66,649.31,0.357]
[1749368150931,0.458,649.68,649.28,0.30803351]
[1749368151231,1.10606499,649.67,649.28,0.30803351]
[1749368151434,1.10606499,649.66,649.28,0.30803351]
[1749368151635,1.10606499,649.65,649.28,0.30803351]
[1749368151835,0.458,649.68,649.28,0.30803351]
[1749368152035,1.10611916,649.67,649.28,0.30803351]
[1749368152235,1.10611916,649.66,649.28,0.30803351]
[1749368152430,1.10611916,649.65,649.28,0.30803351]
[1749368152635,0.458,649.68,649.28,0.30803351]
[1749368152835,1.10610536,649.67,649.28,0.30803351]
[1749368153032,1.10610536,649.66,649.28,0.30803351]
[1749368153335,0.458,649.68,649.29,0.333]
[1749368153535,1.10592549,649.67,649.29,0.715]
[1749368153834,1.10592549,649.66,649.29,0.715]
[1749368154032,0.458,649.68,649.29,0.715]
[1749368154237,1.1059874,649.67,649.29,0.715]
[1749368154431,1.1059874,649.66,649.29,0.715]
[1749368154633,0.458,649.68,649.29,0.715]
[1749368154830,1.10603521,649.67,649.29,0.715]
[1749368155037,1.10603521,649.66,649.29,0.715]
[1749368155237,0.458,649.68,649.29,0.715]
[1749368155533,1.10605175,649.67,649.29,0.715]
[1749368155733,1.10605175,649.66,649.29,0.715]
[1749368156037,0.458,649.68,649.29,0.715]
[1749368156234,1.10610421,649.67,649.29,0.715]
[1749368156437,1.10610421,649.66,649.29,0.715]
[1749368156636,1.10610421,649.65,649.29,0.715]
[1749368156833,0.458,649.68,649.29,0.715]
[1749368157038,1.1061828,649.67,649.29,0.715]
[1749368157236,1.1061828,649.66,649.29,0.715]
[1749368157538,0.458,649.68,649.29,0.715]
[1749368157539,1.1061828,649.65,649.29,0.715]
[1749368157835,1.1061828,649.64,649.29,0.715]
[1749368158039,0.458,649.68,649.29,0.715]
[1749368158239,1.106195,649.67,649.29,0.715]
[1749368158435,1.106195,649.66,649.29,0.715]
[1749368158640,1.106195,649.65,649.29,0.715]
[1749368158839,1.106195,649.64,649.29,0.715]
[1749368159041,1.106195,649.63,649.29,0.715]
[1749368159243,0.458,649.68,649.29,0.715]
[1749368159441,1.10512334,649.67,649.29,0.715]
[1749368159744,1.10512334,649.66,649.29,0.715]
[1749368160040,1.10512334,649.65,649.29,0.715]
[1749368160240,1.10512334,649.64,649.29,0.715]
[1749368160549,1.10512334,649.63,649.29,0.715]
[1749368160742,1.10512334,649.62,649.29,0.715]
[1749368160941,1.10512334,649.61,649.29,0.715]
[1749368161140,0.458,649.68,649.29,0.715]
[1749368161341,1.1052787,649.67,649.29,0.715]
[1749368161541,1.10527555,649.66,649.29,0.715]
[1749368161744,1.10527555,649.65,649.29,0.715]
[1749368161946,1.10527555,649.64,649.29,0.715]
[1749368162241,1.10527555,649.63,649.29,0.715]
[1749368162445,1.10527555,649.62,649.29,0.715]
[1749368162744,1.10527555,649.61,649.29,0.715]
[1749368162945,0.458,649.68,649.29,0.715]
[1749368163141,1.10535691,649.67,649.29,0.715]
[1749368163446,0.458,649.68,649.29,0.715]
[1749368163447,1.10535691,649.66,649.29,0.715]
[1749368163646,1.10535691,649.65,649.29,0.715]
[1749368163841,1.10535691,649.64,649.29,0.715]
[1749368164046,1.10535691,649.63,649.29,0.715]
[1749368164246,1.10535691,649.62,649.29,0.715]
[1749368164447,1.10535691,649.61,649.29,0.382]
[1749368164646,1.10535691,649.6,649.29,0.382]
[1749368164844,0.458,649.68,649.29,0.382]
[1749368165044,1.1053993,649.67,649.29,0.382]
[1749368165244,1.1053993,649.66,649.29,0.382]
[1749368165547,1.1053993,649.65,649.29,0.382]
[1749368165746,1.1053993,649.64,649.29,0.382]
[1749368165947,1.1053993,649.63,649.29,0.382]
[1749368166248,1.1053993,649.62,649.29,0.382]
[1749368166448,1.1053993,649.61,649.29,0.382]
[1749368166750,0.458,649.68,649.29,0.382]
[1749368166946,1.10536931,649.67,649.29,0.382]
[1749368167147,1.10536931,649.66,649.29,0.382]
[1749368167350,1.10536931,649.65,649.29,0.382]
[1749368167648,1.10536931,649.64,649.29,0.382]
[1749368167951,1.10536931,649.63,649.29,0.382]
[1749368168250,1.10536931,649.62,649.3,0.385]
[1749368168447,1.10536931,649.61,649.3,0.385]
[1749368168648,0.458,649.68,649.3,0.385]
[1749368168848,1.10519972,649.67,649.3,0.385]
[1749368169048,1.10519972,649.66,649.3,0.385]
[1749368169247,1.10519972,649.65,649.3,0.385]
[1749368169452,1.10519972,649.64,649.3,0.385]
[1749368169648,1.10519972,649.63,649.3,0.385]
[1749368169851,1.10519972,649.62,649.3,0.385]
[1749368170050,1.10519972,649.61,649.3,0.385]
[1749368170254,1.10519972,649.6,649.3,0.385]
[1749368170450,1.10519972,649.59,649.3,0.385]
[1749368170651,1.10519972,649.58,649.3,0.385]
[1749368170954,0.458,649.68,649.3,0.385]
[1749368171150,1.10535539,649.67,649.3,0.385]
[1749368171354,1.10535539,649.66,649.3,0.385]
[1749368171554,1.10535539,649.65,649.3,0.385]
[1749368171751,1.10535539,649.64,649.3,0.385]
[1749368172056,1.10535539,649.63,649.3,0.385]
[1749368172249,1.10535539,649.62,649.3,0.385]
[1749368172449,1.10535539,649.61,649.3,0.385]
[1749368172650,1.10535539,649.6,649.3,0.385]
[1749368172952,1.10535539,649.59,649.3,0.385]
[1749368173151,0.458,649.68,649.3,0.385]
[1749368173355,1.10516917,649.67,649.3,0.385]
[1749368173555,1.10516917,649.66,649.3,0.385]
[1749368173755,1.10516917,649.65,649.3,0.385]
[1749368173954,1.10516917,649.64,649.3,0.385]
[1749368174254,1.10516917,649.63,649.3,0.385]
[1749368174553,1.10516917,649.62,649.3,0.385]
[1749368174855,1.10516917,649.61,649.3,0.385]
[1749368175053,1.10516917,649.6,649.3,0.385]
[1749368175253,1.10516917,649.59,649.3,0.385]
[1749368175555,0.458,649.68,649.3,0.385]
[1749368175858,1.10513096,649.67,649.3,0.385]
[1749368176057,1.10513096,649.66,649.3,0.385]
[1749368176255,1.10513096,649.65,649.3,0.385]
[1749368176454,1.10513096,649.64,649.3,0.385]
[1749368176754,1.10513096,649.63,649.3,0.385]